{"text_format":"3","workbook":"xlsx","n_sheets":13,"sheets":["Démarrer","Informations de base","Introduction aux fonctions","MOYENNE","MIN et MAX","Date et heure","Combiner texte et nombres","Instructions SI","RECHERCHEV","Fonctions conditionnelles","Assistant Fonction","Erreurs dans les formules","En savoir plus"],"not_rendered":{"images":27,"external_links":2,"defined_names":21},"read":"whole","date_system":"1900"}

{"sheet":"Démarrer","index":0,"n_rows":4,"n_cols":1,"rows_kept":4}
[]
["Se familiariser avec les formules"]
["En quelques étapes, vous serez en mesure de créer des formules et des fonctions dans Excel, le tableur le plus puissant au monde."]
["Pour revenir au début, appuyez sur CTRL+ORIGINE. Pour commencer la visite, appuyez sur CTRL+PAGE SUIVANTE."]

{"sheet":"Informations de base","index":1,"n_rows":43,"n_cols":10,"rows_kept":43}
["Informations de base : faire des maths avec Excel"]
["Dans Excel, vous pouvez additionner, soustraire, multiplier et diviser sans utiliser la moindre fonction intégrée. Il vous suffit d’utiliser quelques opérateurs de base : +, -, *, /. Toutes les formules commencent par un signe égal (=).\n",null,"Chiffres à utiliser :",null,"Opération :","Formules :","Réponses :"]
["Pour additionner, sélectionnez la cellule F3, entrez =C3+C4, puis appuyez sur la touche Entrée. \n",null,1,null,"Addition (+) ",null,{"$f":"C3+C4","v":3}]
["Pour soustraire, sélectionnez la cellule F4, entrez =C3-C4, puis appuyez sur la touche Entrée. ",null,2,null,"Soustraction (-) ",null,{"$f":"C3-C4","v":-1}]
["Pour multiplier, sélectionnez la cellule F5, entrez =C3*C4, puis appuyez sur la touche Entrée.\n",{"$nulls":3},"Multiplication (*) ",null,{"$f":"C3*C4","v":2}]
["Pour diviser, sélectionnez la cellule F6, entrez =C3/C4, puis appuyez sur la touche Entrée.\n",{"$nulls":3},"Division (/) ",null,{"$f":"C3/C4","v":0.5}]
["Essayez ça : modifiez les chiffres des cellules C3 et C4, et vous verrez que les résultats de la formule changent automatiquement.",{"$nulls":3},"Puissance (^) ",null,{"$f":"C3^C4","v":1}]
["CRÉDIT SUPPLÉMENTAIRE : Pour élever une valeur à une puissance, utilisez le symbole accent circonflexe (^), par exemple, =A1^A2. Pour entrer ce symbole, appuyez sur Maj+6. Dans la cellule F7, entrez =C3^C4."]
["Poursuivez votre lecture pour plus d’informations"]
["Étape suivante"]
["Informations complémentaires sur les formules, les cellules et les plages"]
["Excel est composé de cellules individuelles regroupées en lignes et en colonnes. Les lignes sont numérotées, et les colonnes sont représentées par des lettres. Plus d’un million de lignes et 16 000 colonnes sont disponibles, et vous pouvez insérer des formules dans chacune d’entre elles. \n"]
["Les formules peuvent contenir des références de cellule, des plages de références de cellule, des opérateurs et des constantes. Les exemples suivants correspondent tous à des formules :\n\n=A1+B1\n=10+20\n=SOMME(A1:A10)\n\n"]
["Dans le troisième exemple ci-dessus, vous pouvez constater que nous avons utilisé la fonction SOMME. Une fonction est une commande prédéfinie qui, à partir d’une ou plusieurs valeurs, effectue un calcul et renvoie un résultat. Par exemple, la fonction SOMME additionne les références ou plages de cellules que vous spécifiez. Dans cet exemple, elle additionne les cellules A1 à A10. Excel propose plus de 400 fonctions, que vous pouvez explorer sous l’onglet Formules.\n"]
["Les formules qui incluent des fonctions commencent par un signe égal, suivi du nom de la fonction, puis de ses arguments (valeurs utilisées par une fonction pour effectuer un calcul) entre parenthèses. \n"]
["Pour confirmer une formule, appuyez sur la touche Entrée. La formule effectue alors le calcul et le résultat s’affiche dans la cellule. Pour voir la formule proprement dite, consultez la barre de formule située sous le ruban, ou appuyez sur la touche F2 pour passer en mode Modifier afin d’afficher la formule dans la cellule. Appuyez de nouveau sur la touche Entrée pour finaliser la formule et calculer le résultat.\n\n"]
["Explications sur les formules"]
["=10+20 est une formule, dans laquelle 10 et 20 sont des constantes et le signe + est un opérateur."]
["=SOMME(A1:A10) est une formule, dans laquelle SOMME est le nom de la fonction, les parenthèses ouvrante et fermante contiennent les arguments de la formule, et A1:A10 est la plage de cellules de la fonction."]
["=SOMME(A1:A10;C1:C10) est une formule, dans laquelle SOMME est le nom de la fonction, les parenthèses ouvrante et fermante contiennent les arguments de la formule, et A1:A10;C1:C10 sont les plages de cellules de la fonction séparées par une virgule."]
["BON À SAVOIR : Les constantes sont des valeurs que vous entrez dans des cellules ou dans des formules. Même si =10+20 permet d’effectuer le même calcul que =A1+B1, nous vous déconseillons d’utiliser des constantes. Pourquoi? Parce qu’une constante n’est pas facile à voir sans rechercher et sélectionner la cellule correspondante. Cela peut rendre les modifications ultérieures difficiles. Il est préférable de placer vos constantes dans des cellules, où elles peuvent facilement être ajustées et référencées dans vos formules.\n\nPar exemple : sélectionnez la cellule jaune comportant le nombre 12 ci-dessous. Vous pouvez constater que nous avons utilisé la fonction SOMME suivie d’une plage de cellules. Nous n’avons pas directement entré « 4 » ou « 8 » dans la formule. \n"]
["Précédent"]
["Suivant"]
["Plus d’informations sur le Web"]
["Utiliser Excel comme calculatrice"]
["Vue d’ensemble des formules dans Excel"]
["Fonctions Excel (par catégorie) "]
["Fonctions Excel (par ordre alphabétique) "]
["Formation en ligne gratuite sur Excel"]
{"$rows_empty":10}
[{"$nulls":9},"Valeurs"]
[{"$nulls":9},4]
[{"$nulls":9},8]
[{"$nulls":9},{"$f":"SUM(J41:J42)","v":12}]

{"sheet":"Introduction aux fonctions","index":2,"n_rows":88,"n_cols":7,"rows_kept":88}
["Introduction aux fonctions"]
["Les fonctions vous permettent d’effectuer différentes actions, comme des opérations mathématiques, des recherches de valeurs ou même des calculs de dates et d’heures. Nous allons essayer différentes méthodes pour additionner des valeurs avec la fonction SOMME.",null,"Fruits","Quantité",null,"Viande","Quantité"]
["Sous la colonne Quantité du tableau Fruits (cellule D7), entrez =SOMME(D3:D6). Ou entrez =SOMME(, sélectionnez cette plage avec la souris et appuyez sur la touche Entrée. La formule additionne les valeurs des cellules D3, D4, D5 et D6. Vous obtenez le résultat suivant : 170.\n",null,"Pommes",50,null,"Bœuf",50]
["Essayons maintenant la fonctionnalité Somme automatique. Sélectionnez la cellule G7 du tableau Viande, puis accédez à Formules > Somme automatique > et sélectionnez SOMME. Excel entre automatiquement la formule pour vous. Appuyez sur la touche Entrée pour confirmer. La fonctionnalité Somme automatique contient les fonctions les plus courantes.\n",null,"Oranges",20,null,"Poulet",30]
["Vous pouvez aussi utiliser un raccourci clavier. Sélectionnez la cellule D15, puis appuyez sur Alt = et sur Entrée. La fonction SOMME est automatiquement entrée.",null,"Bananes",60,null,"Porc",10]
["Poursuivez votre lecture pour plus d’informations",null,"Citrons",40,null,"Poisson",50]
["CRÉDIT SUPPLÉMENTAIRE\nUtilisez la fonction NB avec l’une des méthodes que vous avez déjà essayées. La fonction NB compte le nombre de cellules d’une plage qui contient des nombres.",null,"SOMME > ",{"$f":"SUM(D3:D6)","v":170},null,"SOMME > "]
["Étape suivante"]
["Informations complémentaires sur les fonctions",null,"Article","Montant",null,"Article","Quantité"]
["Accédez à l’onglet Formules et parcourez la Bibliothèque de fonctions, dans laquelle les fonctions sont répertoriées par catégorie (Texte, DateHeure, etc.). Insérer une fonction vous permet de rechercher des fonctions par nom et de lancer un Assistant pour vous aider à créer votre formule. \n\nLorsque vous commencez à entrer un nom de fonction après avoir appuyé sur =, Excel lance la fonctionnalité IntelliSense, qui répertorie toutes les fonctions commençant par les lettres que vous tapez. Dès que vous voyez la fonction souhaitée, appuyez sur Tab et Excel entrera automatiquement le nom complet de la fonction ainsi que la parenthèse ouvrante. Excel affichera également les arguments obligatoires et facultatifs. \n\n\n\nExaminons maintenant l’anatomie de quelques fonctions. La structure de la fonction SOMME est la suivante :",null,"Pain",50,null,"Pain",50]
["Si la fonction SOMME pouvait parler, elle dirait ceci : renvoyer la somme de toutes les valeurs des cellules D38 à D41 et toutes celles de la colonne H. SOMME est le nom de la fonction, D38:D41 est l’argument de la première plage, qui est presque toujours obligatoire, et H:H est l’argument de la deuxième plage, les deux plages étant séparées par une virgule. Essayons à présent une formule qui ne nécessite aucun argument.\n",null,"Beignets",100,null,"Beignets",100]
["La fonction AUJOURDHUI renvoie la date du jour. Elle se met automatiquement à jour dès qu’Excel procède à un nouveau calcul.",null,"Biscuits",40,null,"Biscuits",40]
["ESSAYEZ ÇA\nSélectionnez ces cellules. Puis, dans le coin inférieur droit de la fenêtre Excel, recherchez SOMME : 170 sur la barre inférieure. Il s’agit de la barre d’état, qui vous permet de trouver rapidement un total ainsi que d’autres informations sur une cellule ou une plage sélectionnée. ",null,"Gâteaux",50,null,"Gâteaux",50]
["DÉTAIL IMPORTANT\nDouble-cliquez sur cette cellule. Vous pouvez voir le 100 à la fin. Bien qu’il soit possible de placer des nombres dans une formule de ce type, cela est déconseillé sauf nécessité absolue. Il s’agit d’une constante, et il est facile d’oublier qu’elle est là. Nous vous recommandons de plutôt faire référence à une autre cellule, par exemple la cellule D16. En effet, celle-ci est facilement identifiable et n’est pas dissimulée au sein d’une formule. ",null,"Tartes",20,null,"Tartes",20]
["Plus d’informations sur le Web",null,"SOMME > ",null,null,"NB >"]
["À propos de la fonction SOMME"]
["Utiliser Somme automatique pour additionner des nombres"]
["À propos de la fonction NB"]
["Formation en ligne gratuite sur Excel"]
["Retour au début"]
["Étape suivante"]
{"$rows_empty":12}
[null,null,"Fruits","Montant"]
[null,null,"Pommes",50]
[null,null,"Oranges",20]
[null,null,"Bananes",60]
[null,null,"Citrons",40]
[null,null,"SOMME > ",{"$f":"SUM(D35:D38)","v":170}]
[]
[]
[]
[]
[null,null,"Article","Montant"]
[null,null,"Voitures",20]
[null,null,"Camions",10]
[null,null,"Vélos",10]
[null,null,"Patins",40]
[]
[{"$nulls":3},"Total :",null,"Valeur supplémentaire","Nouveau total"]
[{"$nulls":3},{"$f":"SUM(D45:D48,100)","v":180},null,100,{"$f":"SUM(D45:D48,F51)","v":180}]
{"$rows_empty":35}
["Formation en ligne gratuite sur Excel"]
["Retournez au début en appuyant sur CTRL+ORIGINE. Pour passer à l’étape suivante, appuyez sur CTRL+ PAGE SUIVANTE."]

{"sheet":"MOYENNE","index":3,"n_rows":46,"n_cols":7,"rows_kept":46}
["Fonction MOYENNE"]
["Utilisez la fonction MOYENNE pour obtenir la moyenne des nombres d’une plage de cellules.",null,"Fruits","Quantité",null,"Viande","Montant"]
["Sélectionnez la cellule D7, puis utilisez Somme automatique pour ajouter une fonction MOYENNE.",null,"Pommes",50,null,"Bœuf",50]
["Sélectionnez maintenant la cellule G7, et entrez une fonction MOYENNE en tapant =MOYENNE(G3:G6). ",null,"Oranges",20,null,"Poulet",30]
["À la cellule D15, vous pouvez utiliser Somme automatique ou entrer manuellement une autre fonction MOYENNE. ",null,"Bananes",60,null,"Porc",10]
["ESSAYEZ ÇA\nSélectionnez une plage de nombres et consultez la barre d’état pour connaître la moyenne.\n",null,"Citrons",40,null,"Poisson",50]
["Activer la feuille précédente",null,"MOYENNE >",null,null,"MOYENNE >"]
["Accéder à la feuille suivante"]
["CRÉDIT SUPPLÉMENTAIRE\nEssayez d’utiliser ici MEDIANE ou MODE. \n\nMEDIANE renvoie la valeur qui se trouve au centre de l’ensemble de données, tandis que \nMODE renvoie la valeur la plus fréquente.\n",null,"Article","Quantité",null,"Article","Quantité"]
["Liens pour accéder à des informations complémentaires sur le web",null,"Pain",50,null,"Pain",50]
["Sélectionnez ce lien pour accéder sur le web à des informations complémentaires sur la fonction MOYENNE",null,"Beignets",100,null,"Beignets",100]
["Sélectionnez ce lien pour accéder sur le web à des informations complémentaires sur la fonction MEDIANE",null,"Biscuits",40,null,"Biscuits",40]
["Sélectionnez ce lien pour accéder sur le web à des informations complémentaires sur la fonction MODE",null,"Gâteaux",50,null,"Gâteaux",50]
["Sélectionnez ce lien pour accéder sur le web à une formation gratuite sur Excel",null,"Tartes",20,null,"Tourtes",20]
[null,null,"MOYENNE >"]
{"$rows_empty":13}
[null,null,"Informations complémentaires sur la fonction SOMME "]
[null,null,"Dans certains conseils ci-dessus, nous vous avons appris à utiliser la fonction SOMME. Voici des informations complémentaires à ce sujet."]
[null,null,"Les cellules C37 à D41 contiennent des données réparties sur deux colonnes : Fruits et Montant. "]
[null,null,"La formule de la cellule D42 est =SOMME(D38:D41)."]
[null,null,"Si la fonction SOMME de la cellule D42 pouvait parler, voici ce qu’elle dirait : Additionner les valeurs des cellules D38, D39, D40 et D41."]
[null,null,"Vous pouvez également utiliser cette fonction de la manière suivante :"]
[null,null,"Les cellules C47 à D48 contiennent des données réparties sur deux colonnes : Article et Quantité. "]
[]
[]
[]
[]
[]
[null,null,"Plus d’informations sur le Web"]
[null,null,"À propos de la fonction SOMME"]
[null,null,"À propos de la fonction SOMME.SI"]
[null,null,"Utiliser Excel comme calculatrice"]
[null,null,"Formation en ligne gratuite sur Excel"]
[null,null,"Retournez au début en appuyant sur CTRL+ORIGINE. Pour passer à l’étape suivante, appuyez sur CTRL+PAGE SUIVANTE."]

{"sheet":"MIN et MAX","index":4,"n_rows":25,"n_cols":7,"rows_kept":25}
["Fonctions MIN et MAX"]
["Utilisez la fonction MIN pour obtenir le nombre minimum d’une plage de cellules.",null,"Fruits","Quantité",null,"Viande","Montant"]
["Utilisez la fonction MAX pour obtenir le nombre maximum d’une plage de cellules.",null,"Pommes",50,null,"Bœuf",50]
["Sélectionnez la cellule D7, puis utilisez l’Assistant Somme automatique pour ajouter une fonction MIN.\n",null,"Oranges",20,null,"Poulet",30]
["Sélectionnez maintenant la cellule G7 et entrez une fonction MAX en tapant =MAX(D3:D6).\n",null,"Bananes",60,null,"Porc",10]
["À la cellule D15, vous pouvez utiliser l’Assistant Somme automatique ou entrer manuellement une fonction MIN ou MAX. \n",null,"Citrons",40,null,"Poisson",50]
["Plus d’informations sur le Web\n",null,"MIN >",null,null,"MAX >"]
["À propos de la fonction MIN"]
["À propos de la fonction MAX",null,"Article","Quantité",null,"Article","Quantité"]
["Formation en ligne gratuite sur Excel",null,"Pain",50,null,"Pain",50]
["BON À SAVOIR\nVous pouvez utiliser MIN ou MAX avec plusieurs plages, ou avec des valeurs pour renvoyer la plus grande ou la plus petite de ces valeurs, par exemple, =MIN(A1:A10;B1:B10) ou =MAX(A1:A10;B1), où B1 contient une valeur seuil, par exemple 10, auquel cas la formule ne renverra jamais un résultat inférieur à 10.\n",null,"Beignets",100,null,"Beignets",100]
[null,null,"Biscuits",40,null,"Biscuits",40]
[null,null,"Gâteaux",50,null,"Gâteaux",50]
[null,null,"Tartes",20,null,"Tourtes",20]
[null,null,"MIN ou MAX >",{"$nulls":3},{"$f":"MIN(G10:G14,10)","v":10}]
[]
[]
[]
["Vous pouvez utiliser MIN ou MAX avec plusieurs plages, ou avec des valeurs pour renvoyer la plus grande ou la plus petite de ces valeurs, par exemple, =MIN(A1:A10;B1:B10) ou =MAX(A1:A10;10)."]
[]
["Plus d’informations sur le Web"]
["À propos de la fonction MIN"]
["À propos de la fonction MAX"]
["Utiliser Excel comme calculatrice"]
["Formation en ligne gratuite sur Excel"]

{"sheet":"Date et heure","index":5,"n_rows":47,"n_cols":6,"rows_kept":47}
["Fonctions de date"]
["Excel peut vous donner la date actuelle, telle que définie dans les paramètres régionaux de votre ordinateur. Vous pouvez également ajouter et soustraire des dates."]
["La fonction AUJOURDHUI renvoie la date du jour. Il s’agit d’une fonction dite « volatile » car elle est quotidiennement mise à jour. Ainsi, en rouvrant votre classeur demain, vous y verrez la date de demain. Dans la cellule D6, entrez =AUJOURDHUI(). \n"]
["Soustraire des dates : entrez la date de votre prochain anniversaire au format JJ/MM/AA dans la cellule D7 et Excel indiquera le nombre de jours restants dans la cellule D8 en utilisant la formule =D7-D6.\n"]
["Ajouter des dates : supposons que vous voulez connaître la date d’échéance d’une facture ou savoir quand vous devez rendre un livre à la bibliothèque. Vous pouvez ajouter des jours à une date. Dans la cellule D10, entrez un nombre de jours aléatoire. Nous avons entré la formule =D6+D10 dans la cellule D11 pour calculer la date d’échéance à partir d’aujourd'hui.\n",null,"Fonctions de date"]
["BON À SAVOIR\nPour représenter les dates, Excel compte le nombre de jours écoulés depuis le 1 janvier 1900. Les heures sont exprimées en fractions de journée basées sur le nombre de minutes. Par exemple, 1/01/2017 12:30 est représenté sous la forme suivante : 42736.5208. Si l’heure ou la date apparaissent sous cette forme, vous pouvez appuyer sur Ctrl+1 > Nombre > et sélectionner un format de Date ou d’Heure. ",null,"Date du jour :",null,null,{"$f":"IF(D6=TODAY(),\"Vous avez compris!\",\"\")","v":""}]
["DÉTAIL IMPORTANT\nSi vous n’avez pas encore entré votre date d’anniversaire, vous pouvez utiliser une fonction SI telle que celle-ci pour empêcher Excel d’afficher un nombre négatif : =SI(D7=\"\";\"\";D7-D6), ce qui signifie « SI D7 n’est égal à rien, ne rien afficher, sinon afficher D7 moins D6 ».\n",null,"Votre anniversaire :"]
["Fonctions d’heure",null,"Jours restants avant votre anniversaire :",{"$f":"D7-D6","v":0}]
["Excel peut vous donner l’heure actuelle, telle que définie dans les paramètres régionaux de votre ordinateur. Vous pouvez également ajouter ou soustraire des heures. Par exemple, vous pouvez suivre le nombre d’heures de travail hebdomadaires d’un employé pour calculer son salaire et ses heures supplémentaires.\n"]
["Dans la cellule D28, entrez =MAINTENANT(). Cette fonction renvoie l’heure actuelle et se met à jour à chaque calcul d’Excel. Pour changer le format d’heure, accédez à Ctrl+1 > Nombre > Heure > et sélectionnez le format souhaité.\n",null,"Délai de grâce (en jours) :"]
["Additionner des heures : à la cellule D36, nous avons entré la formule =((D35-D32)-(D34-D33))*24, qui calcule les heures de début et de fin d’un employé, puis soustrait le temps qu’il a prispour dîner. En fin de formule, *24 convertit en heures la fraction de la journée prise en compte par Excel. Mais vous allez devoir sélectionner le format Nombre pour la cellule. Pour ce faire, accédez à Accueil > Format > Cellules (Ctrl+1) > Nombre > Nombre > 2 décimales.\n\n",null,"Date d’échéance de la facture :",{"$f":"D6+D10","v":"00:00:00"}]
["Si cette formule pouvait parler, elle dirait ceci : « Prendre l’Heure d’arrivée et l’Heure de départ, puis soustraire les heures de Début de déjeuner/Fin de déjeuner, et multiplier celles-ci par 24 pour convertir le temps fractionné d’Excel en heures », ou =((Heure d’arrivée-Heure de départ)-(Début du déjeuner-Fin du déjeuner))*24."]
["Précédent"]
["Suivant"]
["Plus d’informations sur le Web"]
["À propos de la fonction AUJOURDHUI"]
["À propos de la fonction MAINTENANT"]
["À propos de la fonction DATE"]
["Formation en ligne gratuite sur Excel"]
{"$rows_empty":7}
[null,null,"Fonctions d’heure"]
[null,null,"Heure actuelle :"]
[]
[]
[null,null,"Heures de travail quotidiennes"]
[null,null,"Heure d’arrivée :","08:00:00"]
[null,null,"Début du déjeuner :","12:00:00"]
[null,null,"Fin du déjeuner :","13:00:00"]
[null,null,"Heure de départ :","17:00:00"]
[null,null,"Nombre total d’heures :",{"$f":"((D35-D32)-(D34-D33))*24","v":8.000000000000002}]
{"$rows_empty":8}
[null,null,"Date et heure statiques"]
[null,null,"Date :","2017-09-27"]
[null,null,"Heure :","08:52:00"]

{"sheet":"Combiner texte et nombres","index":6,"n_rows":37,"n_cols":6,"rows_kept":37}
["Combiner du texte à partir de différentes cellules"]
["Dans Excel, il est souvent utile de combiner du texte réparti dans des cellules différentes. Cet exemple est très courant : vous disposez de prénoms et de noms que vous souhaitez combiner sous la forme « Prénom, Nom » ou « Nom complet ». Pour ce faire, vous pouvez utiliser le signe esperluette (&), disponible sous la touche & du clavier.\n",null,"Prénom","Nom","Nom, Prénom","Nom complet"]
["Dans la cellule E3, entrez =D3&C3 pour combiner les noms et prénoms. \n",null,"Nicole","Durand",{"$f":"D3&\", \"&C3","v":"Durand, Nicole"},{"$f":"C3&\" \"&D3","v":"Nicole Durand"}]
["Cela dit, la forme DurandNicole n’est pas idéale. Une virgule et un espace doivent être ajoutés. Pour ce faire, nous allons utiliser des guillemets afin de créer une nouvelle chaîne de texte. Cette fois, entrez =D3&\", \"&C3. La portion &\", \"& nous permet d’ajouter une virgule et un espace au texte des cellules.\n",null,"Roger","Neurisse"]
["Pour créer le nom complet, nous allons combiner le prénom et le nom, mais utiliser un espace sans virgule. Dans la cellule F3, entrez =C3&\" \"&D3.\n",null,"Jean","Michelet"]
["Poursuivez votre lecture pour plus d’informations",null,"Marie","Jamet"]
["Suivant",null,"Stéphane","Tessier"]
["Combiner du texte et des nombres",null,"Raymond","Normand"]
["Nous allons maintenant utiliser le symbole & pour combiner du texte et des nombres.\n\nExaminez les cellules C28:D29. Comme vous pouvez le constater, la date et l’heure figurent dans des cellules distinctes. Vous pouvez les combiner avec le symbole &, comme dans les cellules C32:C33, mais le résultat ne convient pas. Dans la mesure où Excel n’est pas capable de deviner de quelle façon vous souhaitez afficher les chiffres, il retourne la date au format de base, sous forme de numéros de série. Nous devons explicitement indiquer à Excel comment mettre en forme la portion numérique de la formule afin qu’il l’affiche au format de notre choix dans la chaîne de texte qui en résulte. Pour ce faire, nous allons utiliser la fonction TEXTE et un code de format.",null,"Robert","Troyat"]
["Dans la cellule C36, entrez =C28&\" \"&TEXTE(D28;\"AAAA-MM-JJ\"). AAAA-MM-JJ correspond au code de format français Année/Mois/Jour, par exemple 2017-09-25.\n",null,"Yvonne","Martin"]
["Dans la cellule C37, entrez =C29&\" \"&TEXTE(D29;\"H:MM\"). HH:MM correspond au code de format français Heures:Minutes, par exemple 13:30.\n\n"]
["ESSAYEZ ÇA\nLes formules sont parfois difficiles à lire, en particulier lorsqu’elles sont longues, mais vous pouvez séparer des portions de celles-ci à l’aide d’espaces, comme dans l’exemple suivant :\n\n=C28 & \" \" & TEXTE(D28;\"AAAA-MM-JJ\")"]
["À APPROFONDIR\nSi vous ne savez pas quel code de format utiliser, vous pouvez utiliser Ctrl+1 > Nombre pour appliquer le format de votre choix à une cellule.  Sélectionnez ensuite l’option Personnalisée. Vous pouvez alors copier le code de format affiché dans votre formule."]
["Plus d’informations sur le Web"]
["À propos de la fonction TEXTE"]
["Combiner du texte et des nombres"]
["Formation en ligne gratuite sur Excel"]
{"$rows_empty":9}
[null,null,"Utiliser du texte et des nombres"]
[null,null,"Date du jour :",{"$f":"TODAY()","v":"2021-10-19"}]
[null,null,"Heure actuelle :",{"$f":"NOW()","v":44488.39376747685}]
[]
[null,null,"Combiner du texte et des nombres"]
[null,null,{"$f":"C28&\" \"&D28","v":"Date du jour : 44488"}]
[null,null,{"$f":"C29&\" \"&D29","v":"Heure actuelle : 44488.3937674769"}]
[]
[null,null,"Mise en forme de texte et de nombres"]
[null,null,{"$f":"C28 &\" \"& TEXT(D28,\"AAAA-MM-JJ\")","v":"Date du jour : Tuesday-10-JJ"}]
[null,null,{"$f":"C29&\" \"&TEXT(D29,\"H:MM\")","v":"Heure actuelle : 9:27"}]

{"sheet":"Instructions SI","index":7,"n_rows":37,"n_cols":6,"rows_kept":37}
["Instructions SI"]
["Les instructions SI vous permettent d’établir des comparaisons logiques entre les conditions. Une instruction SI dit généralement ceci : si une condition est vraie, faire telle chose. Sinon, faire autre chose. Les formules peuvent renvoyer du texte, des valeurs ou d’autres calculs."]
["Dans la cellule D9, entrez =SI(C9=\"Pomme\";VRAI;FAUX). La bonne réponse est VRAI. \n"]
["Copiez le contenu de la cellule D9 dans la cellule D10. La réponse est FAUX car une orange n’est pas une pomme.\n"]
["Prenons un autre exemple : examinez la cellule D12. Nous y avons entré la formule =SI(C12<100;\"Inférieur à 100\";\"Supérieur à 100\"). Que se passe-t-il si vous entrez un nombre supérieur à 100 dans la cellule C12?\n"]
["DÉTAIL IMPORTANT\nContrairement à d’autres termes employés dans les formules Excel, il n’est pas nécessaire de mettre VRAI et FAUX entre guillemets, et Excel les met automatiquement en majuscules. Il n’est pas non plus nécessaire de mettre les chiffres entre guillemets. Les termes ou expressions ordinaires, tels que Oui ou Non doivent être mis entre guillemets. Par exemple : \n=SI(C3=\"Pomme\";\"Oui\";\"Non\")"]
["Poursuivez votre lecture pour plus d’informations"]
["Suivant",null,"Instructions SI"]
["Association de l’instruction SI et d’une autre fonction",null,"Pomme"]
["Les instructions SI peuvent également forcer l’exécution de calculs supplémentaires si une condition donnée est remplie. Nous allons ici évaluer une cellule pour déterminer si une taxe doit s’appliquer à la vente, et calculer celle-ci si la condition est vraie.\n",null,"Orange"]
["À la cellule F33, nous avons entré la formule =SI(E33=\"Oui\";F31*TaxeVente;0),, dans laquelle nous avons configuré TaxeVente en tant que plage nommée avec une valeur de 0,0825. Notre formule dit ceci : si la cellule E33 est égale à Oui, multiplier la cellule F31 par TaxeVente, sinon retourner 0.\n\nRemplacez Oui par Non dans la cellule E33 et vous constaterez que le résultat change."]
["Nous avons ensuite ajouté une instruction SI pour calculer les frais de port, si ceux-ci s’appliquent. La cellule F35 contient la formule =SI(E35=\"Oui\";SOMME(D28:D29)*1,25;0). Cette formule signifie ceci : « Si la cellule E35 est Oui, calculer la somme de la colonne Quantité du tableau ci-dessus, puis la multiplier par 1,25, sinon retourner 0 ».\n",null,50,{"$f":"IF(C12<100,\"Inférieur à 100\",\"Supérieur ou égal à 100\")","v":"Inférieur à 100"}]
["Ensuite, dans la formule de la cellule F35, remplacez 1,25 par \"Frais de port\". Lorsque vous commencez à taper les premières lettres, la fonction de correction automatique d’Excel affiche le terme pour vous. Appuyez alors sur Tab pour entrer ce terme. Il s’agit d’une plage nommée, que nous avons entrée à partir de Formules > Définir un nom. Désormais, si vous souhaitez modifier vos frais de port, il vous suffira de les changer à un seul emplacement, et vous pourrez ensuite réutiliser le terme Frais de port n’importe où dans le classeur.\n\n"]
["BON À SAVOIR\nLorsque vous créez une formule, Excel affiche automatiquement des bordures de couleur autour des plages référencées par la formule, et les plages correspondantes apparaissent dans la même couleur au sein de la formule proprement dite. Ces couleurs sont également visibles si vous sélectionnez la cellule F33 et appuyez sur F2 pour modifier la formule."]
["CONSEIL D’EXPERT\nLes plages nommées vous permettent de définir des termes ou valeurs à un emplacement, puis de les réutiliser à d’autres emplacements du classeur. Pour afficher toutes les plages nommées de ce classeur, accédez à Formules > Gestionnaire de noms. Cliquez ici pour en savoir plus.\n"]
["Précédent"]
["Suivant"]
["Plus d’informations sur le Web"]
["À propos de la fonction SI"]
["À propos de la fonction SI.CONDITIONS"]
["Instructions SI avancées"]
["Formation en ligne gratuite sur Excel"]
[]
[]
[]
[]
[null,null,"Article","Quantité","Coût","Total"]
[null,null,"Machin",2,{"v":9.760711585683554,"d":"9.76 $"},{"$f":"'Instructions SI'!$E$28:$E$29*'Instructions SI'!$D$28:$D$29","v":{"v":19.521423171367108,"d":"19.52 $"}}]
[null,null,"Bidule",3,{"v":3.4189202461080024,"d":"3.42 $"},{"$f":"'Instructions SI'!$E$28:$E$29*'Instructions SI'!$D$28:$D$29","v":{"v":10.256760738324008,"d":"10.26 $"}}]
[]
[{"$nulls":3},"Sous-total",{"$f":"SUM('Instructions SI'!$E$28:$E$29)","v":{"v":13.179631831791557,"d":"13.18 $"}},{"$f":"SUM('Instructions SI'!F28:F29)","v":{"v":29.778183909691116,"d":"29.78 $"}}]
[]
[{"$nulls":3},"Taxe de vente ?","Oui",{"$f":"IF(E33=\"Oui\",F31*TaxeVente,0)","v":{"v":2.456700172549517,"d":"2.46 $"}}]
[]
[{"$nulls":3},"Frais de port ?","Oui",{"$f":"IF(E35=\"Oui\",SUM(D28:D29)*1.25,0)","v":{"v":6.25,"d":"6.25 $"}}]
[]
[{"$nulls":3},"Total",null,{"$f":"SUM(F33,F31,F35)","v":{"v":38.48488408224063,"d":"38.48 $"}}]

{"sheet":"RECHERCHEV","index":8,"n_rows":43,"n_cols":7,"rows_kept":43}
["RECHERCHEV"]
["RECHERCHEV est l’une des fonctions les plus fréquemment utilisées dans Excel (et l’une de nos préférées). Elle permet de rechercher une valeur dans une colonne située à gauche et, si elle trouve une correspondance, elle renvoie des informations dans une autre colonne située à droite. RECHERCHEV dit ceci :\n"]
["=RECHERCHEV(A1;B:C;2;FAUX)"]
["Que voulez-vous rechercher ?"]
["Si vous trouvez ce que vous recherchez, à combien de colonnes sur la droite voulez-vous afficher une valeur ?"]
["Où voulez-vous effectuer la recherche ?"]
["Souhaitez-vous obtenir une correspondance parfaite ou approximative ?"]
["Dans la cellule D22, entrez =RECHERCHEV(C22;C17:D20;2;FAUX). Pour l’article Pommes, la bonne réponse est 50. RECHERCHEV a recherché l’article Pommes puis, après l’avoir trouvé, est passé à la colonne de droite et a renvoyé le nombre correspondant.\n\n"]
["Faites maintenant un essai avec la section Viande, à la cellule G22. Vous devez obtenir la formule suivante : =RECHERCHEV(F22;F17:G20;2;FAUX).\n\n"]
["EXPÉRIMENTEZ\nEssayez de sélectionner différents éléments dans les listes déroulantes. Vous verrez alors que les cellules de résultat affichent instantanément de nouvelles valeurs."]
["Poursuivez votre lecture pour plus d’informations"]
["Suivant"]
["RECHERCHEV et #N/A"]
["Parfois, la fonction RECHERCHEV ne trouve pas ce que vous recherchez et renvoie une erreur (#N/A). Cette erreur peut être due à l’une des deux causes suivantes : la valeur recherchée n’existe pas ou la cellule de référence ne comporte encore aucune valeur.\n"]
["Si vous savez que la valeur recherchée existe et souhaitez masquer l’erreur lorsque la cellule de recherche est vide, vous pouvez utiliser une instruction SI. Nous allons encapsuler la formule RECHERCHEV de la cellule D43 comme ceci :\n\n=SI(C43=\"\";\"\";RECHERCHEV(C43;C37:D41;2;FAUX))\n\nCette formule signifie : si la cellule C43 n’est égale à rien (\"\"), ne rien renvoyer, sinon renvoyer les résultats de la fonction RECHERCHEV. Notez que nous avons ajouté une deuxième parenthèse fermante à la fin de la formule. Celle-ci ferme l’instruction SI.\n"]
["Si vous n’êtes pas sûr de l’existence de la valeur recherchée mais que vous souhaitez malgré tout supprimer l’erreur #N/A, vous pouvez utiliser une fonction de gestion d’erreur SIERREUR à la cellule G43 : =SIERREUR(RECHERCHEV(F43;F37:G41;2;FAUX);\"\"). La fonction SIERREUR signifie ceci : si la fonction RECHERCHEV renvoie un résultat valide, l’afficher, sinon ne rien afficher (\"\"). Nous n’avons ici rien affiché (\"\"), mais vous pouvez également utiliser des chiffres (0,1, 2, etc.) ou du texte (par exemple, « La formule est incorrecte »).\n",null,"Fruits","Montant",null,"Viande","Quantité"]
["DÉTAIL IMPORTANT\nLa fonction SIERREUR est un gestionnaire d’erreurs global, ce qui signifie qu’elle supprimera toutes les erreurs renvoyées par votre formule. Cela peut entraîner des problèmes si Excel vous envoie une notification pour vous signaler que votre formule contient une erreur légitime qui doit être résolue.\n\nEn règle générale, il est préférable de ne pas ajouter de gestionnaires d’erreurs à vos formules tant que vous n’êtes pas absolument certain qu’elles fonctionnent correctement.",null,"Pommes",50,null,"Bœuf",50]
["Précédent",null,"Oranges",20,null,"Poulet",30]
["Suivant",null,"Bananes",60,null,"Porc",10]
["Plus d’informations sur le Web",null,"Citrons",40,null,"Poisson",50]
["À propos de la fonction RECHERCHEV"]
["À propos des fonctions INDEX/EQUIV",null,"Pommes",null,null,"Porc"]
["À propos de la fonction SIERREUR"]
["Utiliser un tableau croisé dynamique pour analyser les données d’une feuille de calcul"]
["Formation en ligne gratuite sur Excel"]
{"$rows_empty":9}
[null,null,"Si la fonction SOMME de la cellule D42 pouvait parler, voici ce qu’elle dirait : Additionner les valeurs des cellules D38, D39, D40 et D41."]
[null,null,"Article","Quantité",null,"Article","Quantité"]
[null,null,"Pain",50,null,"Pain",50]
[null,null,"Beignets",100,null,"Beignets",100]
[null,null,"Biscuits",40,null,"Biscuits",40]
[null,null,"Gâteaux",50,null,"Gâteaux",50]
[null,null,"Tourtes",20,null,"Tartes",20]
[]
[{"$nulls":3},{"$f":"VLOOKUP(C43,C37:D41,2,FALSE)","v":{"$error":"#N/A"}},null,"Pâtisserie",{"$f":"IFERROR(VLOOKUP(F43,F37:G41,2,FALSE),\"\")","v":""}]

{"sheet":"Fonctions conditionnelles","index":9,"n_rows":123,"n_cols":34,"rows_kept":123}
["Fonctions conditionnelles - SOMME.SI"]
["Les fonctions conditionnelles vous permettent d’additionner, de calculer la moyenne, de compter ou d’obtenir les valeurs minimum ou maximum d’une plage par rapport à une condition donnée ou en fonction de critères que vous spécifiez. Par exemple, parmi tous les fruits de la liste, combien correspondent à des pommes ? Ou, combien d’oranges appartiennent au type Floride ?",null,"Fruits","Quantité",null,"Fruits","Type","Quantité",{"$nulls":17},"Fruits",null,"Pommes",null,"Oranges",null,"Bananes",null,"Citrons"]
["SOMME.SI vous permet d’additionner une plage d’après un critère spécifique recherché dans une autre plage, par exemple le nombre de pommes dont vous disposez. Sélectionnez la cellule D17 et entrez =SOMME.SI(C3:C14;C17;D3:D14). La structure de la fonction SOMME.SI est la suivante :",null,"Pommes",50,null,"Pommes","Fuji",50,{"$nulls":17},"Pommes",null,"Fuji",null,"Floride",null,"Cavendish",null,"Rough"]
[{"$f":"SUMIF(C3:C14,C17,D3:D4)","v":150},null,"Oranges",20,null,"Oranges","Floride",20,{"$nulls":17},"Oranges",null,"Honeycrisp",null,"Navel",null,"Lady Finger",null,"Eureka"]
["Quelle plage voulez-vous examiner ?",null,"Bananes",60,null,"Bananes","Cavendish",60,{"$nulls":17},"Bananes"]
["Quelle valeur (texte ou nombre) voulez-vous rechercher ?",null,"Citrons",40,null,"Citrons","Rough",40,{"$nulls":17},"Citrons"]
["Pour chaque correspondance trouvée, quelle plage voulez-vous additionner ?",null,"Pommes",50,null,"Pommes","Honeycrisp",50]
["SOMME.SI.ENS est identique à SOMME.SI, si ce n’est qu’elle vous permet d’utiliser plusieurs critères. Par exemple, vous pouvez ici effectuer une recherche sur les critères Fruits et Type, et pas seulement sur Fruits. Sélectionnez la cellule H17 et entrez =SOMME.SI.ENS(H3:H14;F3:F14;F17;G3:G14;G17). La structure de la fonction SOMME.SI.ENS est la suivante :\n",null,"Oranges",20,null,"Oranges","Navel",20]
["=SOMME.SI(H3:H14;F3:F14;F17;G3:G14;G17)",null,"Bananes",60,null,"Bananes","Lady Finger",60]
["Quelle plage voulez-vous additionner ?",null,"Citrons",40,null,"Citrons","Eureka",40]
["Première plage à examiner pour rechercher des correspondances",null,"Pommes",50,null,"Pommes","Honeycrisp",50]
["Critère de la première correspondance",null,"Oranges",20,null,"Oranges","Navel",20]
["Deuxième plage à examiner pour rechercher des correspondances",null,"Bananes",60,null,"Bananes","Cavendish",60]
["Critère de la deuxième correspondance",null,"Citrons",40,null,"Citrons","Eureka",40]
["CONSEIL D’EXPERT\nChacune des cellules Fruits et Type s’accompagne d’une liste déroulante dans laquelle vous pouvez sélectionner différents fruits. Faites un essai et vous verrez que les formules se mettent automatiquement à jour."]
["Poursuivez votre lecture pour plus d’informations",null,"Fruits","SOMME.SI",null,"Fruits","Type","SOMME.SI.ENS"]
["Étape suivante",null,"Pommes",null,null,"Oranges","Floride"]
["Fonctions conditionnelles - NB.SI"]
["Les fonctions NB.SI et NB.SI.ENS vous permettent de compter les valeurs d’une plage en utilisant le critère de votre choix. Elles sont un peu différentes des autres fonctions SI et SI.CONDITIONS car elles comportent uniquement une plage de critères et un critère. Elles n’évaluent pas une plage pour examiner ensuite une autre plage à synthétiser."]
["Sélectionnez la cellule D64 et entrez =NB.SI(C50:C61;C64). La structure de la fonction NB.SI est la suivante :"]
["=NB.SI.ENS(C50:C61;C64)"]
["Quelle plage voulez-vous examiner ?"]
["Quelle valeur (texte ou nombre) voulez-vous rechercher ?"]
["La fonction NB.SI.ENS est identique à SOMME.SI, si ce n’est qu’elle vous permet d’utiliser plusieurs critères. Par exemple, vous pouvez ici effectuer une recherche sur les critères Fruits et Type, et pas seulement sur Fruits. Sélectionnez la cellule H17 et entrez =NB.SI.ENS(F50:F61;F64;G50:G61;G64). La structure de la fonction NB.SI.ENS est la suivante :\n"]
["=NB.SI.ENS(F50:F61;F64;G50:G61;G64)"]
["Première plage à compter"]
["Critère de la première correspondance"]
["Deuxième plage à compter"]
["Critère de la deuxième correspondance"]
["Poursuivez votre lecture pour plus d’informations"]
["Suivant"]
["Autres fonctions conditionnelles"]
["Maintenant que vous connaissez les fonctions SOMME.SI, SOMME.SI.ENS, NB.SI et NB.SI.ENS, vous pouvez essayer d’autres fonctions, telles que MOYENNE.SI/.ENS, MAX.SI.ENS et MIN.SI.ENS. Ces fonctions sont toutes structurées de la même façon. Par conséquent, une fois la formule créée, il vous suffit de remplacer le nom d’une fonction par celui d’une autre fonction. Nous avons créé toutes les formules dont vous aurez besoin pour la cellule E106. Vous pouvez donc les copier/coller, ou essayer de les entrer manuellement pour vous entraîner.\n\nSOMME.SI =SOMME.SI(C92:C103;C106;E92:E103) \nSOMME.SI.ENS =SOMME.SI.ENS(E92:E103;C92:C103;C106;D92:D103;D106) \nMOYENNE.SI =MOYENNE.SI(C92:C103;C106;E92:E103) \nMOYENNE.SI.ENS =MOYENNE.SI.ENS(E92:E103;C92:C103;C106;D92:D92;D106)\nNB.SI =NB.SI(C92:C103;C106)\nNB.SI.ENS =NB.SI.ENS(C92:C103;C106;D92:D103;D106) \nMAX.SI.ENS =MAX.SI.ENS(E92:E103;C92:C103;C10;D92:D103;D106)\nMIN.SI.ENS =MIN.SI.ENS(E92:E103;C92:C103;C106;D92:D103;D106)"]
["Poursuivez votre lecture pour plus d’informations"]
["Suivant"]
["SOMME.SI avec un argument de valeur"]
["Voici un exemple de fonction SOMME.SI associée à l’opérateur Supérieur à (>) pour trouver toutes les valeurs supérieures à un nombre donné :"]
["=SOMME.SI(D118:D122;\">50\")\n"]
["Additionner certaines valeurs en fonction de ce critère :"]
["....Examiner ces cellules...\n "]
["...et si la valeur est supérieure à 50, l’additionner.\n "]
["REMARQUE : si vous utilisez beaucoup de formules conditionnelles, un tableau croisé dynamique peut être une solution plus adaptée. Pour plus d’informations, consultez cet article consacré aux tableaux croisés dynamiques."]
["Plus d’informations sur le Web"]
["À propos de la fonction SOMME.SI"]
["À propos de la fonction SOMME.SI.ENS"]
["À propos de la fonction NB.SI"]
["À propos de la fonction NB.SI.ENS"]
["À propos de la fonction MOYENNE.SI"]
["À propos de la fonction MOYENNE.SI.ENS",null,"Fruits","Quantité",null,"Fruits","Type","Quantité"]
["À propos de la fonction MIN.SI.ENS",null,"Pommes",50,null,"Pommes","Fuji",50]
["À propos de la fonction MAX.SI.ENS",null,"Oranges",20,null,"Oranges","Floride",20]
["Créer une liste déroulante",null,"Bananes",60,null,"Bananes","Cavendish",60]
["Formation en ligne gratuite sur Excel",null,"Citrons",40,null,"Citrons","Rough",40]
["Retour au début",null,"Pommes",50,null,"Pommes","Honeycrisp",50]
["Suivant",null,"Oranges",20,null,"Oranges","Navel",20]
[null,null,"Bananes",60,null,"Bananes","Lady Finger",60]
[null,null,"Citrons",40,null,"Citrons","Eureka",40]
[null,null,"Pommes",50,null,"Pommes","Honeycrisp",50]
[null,null,"Oranges",20,null,"Oranges","Navel",20]
[null,null,"Bananes",60,null,"Bananes","Cavendish",60]
[null,null,"Citrons",40,null,"Citrons","Eureka",40]
[]
[null,null,"Fruits","NB.SI",null,"Fruits","Type","NB.SI.ENS"]
[null,null,"Pommes",{"$f":"COUNTIF(C50:C61,C64)","v":3},null,"Oranges","Floride",{"$f":"COUNTIFS(F50:F61,F64,G50:G61,G64)","v":1}]
{"$rows_empty":26}
[null,null,"Fruits","Type","Quantité"]
[null,null,"Pommes","Fuji",50]
[null,null,"Oranges","Floride",20]
[null,null,"Bananes","Cavendish",60]
[null,null,"Citrons","Rough",40]
[null,null,"Pommes","Honeycrisp",50]
[null,null,"Oranges","Navel",20]
[null,null,"Bananes","Lady Finger",60]
[null,null,"Citrons","Eureka",40]
[null,null,"Pommes","Honeycrisp",50]
[null,null,"Oranges","Navel",20]
[null,null,"Bananes","Cavendish",60]
[null,null,"Citrons","Eureka",40]
[]
[null,null,"Fruits","Type","Essayez par vous-même"]
[null,null,"Citrons","Eureka",{"$f":"SUMIFS(E92:E103,C92:C103,C106,D92:D103,D106)","v":80}]
{"$rows_empty":10}
[null,null,"Article","Quantité"]
[null,null,"Pain",50]
[null,null,"Beignets",100]
[null,null,"Biscuits",40]
[null,null,"Gâteaux",50]
[null,null,"Tourtes",20]
[{"$nulls":3},{"$f":"SUMIF(D118:D122,\">=50\")","v":200}]

{"sheet":"Assistant Fonction","index":10,"n_rows":14,"n_cols":4,"rows_kept":14}
["Laissez-vous guider par l’Assistant Fonction"]
["Si vous connaissez le nom de la fonction que vous souhaitez utiliser, mais que vous ne savez pas comment la créer, vous pouvez utiliser l’Assistant Fonction pour vous aider.\n"]
["Sélectionnez la cellule D10, puis accédez à Formules > Insérer une fonction > entrez RECHERCHEV dans la zone Recherchez une fonction, puis appuyez sur Rechercher. Lorsque RECHERCHEV est en surbrillance, cliquez sur OK, en bas du formulaire. Lorsque vous sélectionnez une fonction dans la liste, Excel affiche sa syntaxe.\n"]
["Entrez ensuite les arguments de la fonction dans leurs zones de texte respectives. À mesure que vous entrez les arguments, Excel les évalue et affiche leur résultat, avec le résultat final en bas du formulaire. À mesure que vous complétez les sections, les critères de chaque argument apparaissent en bas du formulaire.  Lorsque vous avez terminé, appuyez sur OK, et Excel entrera automatiquement la formule.\n\n\n",null,"Fruits","Quantité"]
["ESSAYEZ ÇA\nVous devez obtenir la formule suivante : =RECHERCHEV(C10;C5:D8;2;FAUX).",null,"Pommes",50]
["BON À SAVOIR\nVous pouvez entrer manuellement les références de cellule et de plage, ou les sélectionner avec la souris.",null,"Oranges",20]
["BON À SAVOIR\nLorsque vous entrez la section de chaque argument, la description de l’argument s’affiche en bas du formulaire, au-dessus du résultat de la formule.\n",null,"Bananes",60]
["Précédent",null,"Citrons",40]
["Suivant"]
["Plus d’informations sur le Web",null,"Pommes",{"$f":"VLOOKUP(C10,C5:D8,2,FALSE)","v":50}]
["Vue d’ensemble des formules dans Excel"]
["Fonctions Excel (par catégorie)"]
["Fonctions Excel (par ordre alphabétique)"]
["Formation en ligne gratuite sur Excel"]

{"sheet":"Erreurs dans les formules","index":11,"n_rows":36,"n_cols":4,"rows_kept":36}
["Résoudre les erreurs présentes dans les formules"]
["Tôt ou tard, vous rencontrerez une formule comportant une erreur (#NomErreur!). Les erreurs sont parfois utiles car elles mettent un problème en évidence, mais elles peuvent aussi être difficiles à résoudre. Heureusement, différentes options permettent de remonter jusqu’à la source de l’erreur pour la corriger.\n"]
["Vérification des erreurs : accédez à Formules > Vérification des erreurs. Une boîte de dialogue s’affiche en indiquant la cause générale de l’erreur. À la cellule D9, l’erreur #N/A est due à l’absence de valeur correspondant à « Pomme ». Pour résoudre cette erreur, vous pouvez utiliser une valeur existante, supprimer l’erreur à l’aide de la fonction SIERREUR, ou l’ignorer sachant qu’elle disparaîtra lorsque vous utiliserez une valeur existante.\n",null,"Fruits","Quantité"]
["Cliquez sur Aide sur cette erreur pour ouvrir la rubrique d’aide correspondant à ce message d’erreur. Cliquez sur Afficher les étapes du calcul pour ouvrir la boîte de dialogue Évaluation la formule.\n",null,"Pommes",50]
["Chaque fois que vous cliquez sur Évaluer, Excel examine la formule section par section. Excel ne vous indiquera pas forcément pourquoi l’erreur s’est produite, mais il vous signalera d’où elle vient. À partir de là, consultez la rubrique d’aide pour tenter de déterminer la cause de l’erreur.\n",null,"Oranges",20]
["EXPÉRIMENTEZ\nQuel est le problème ici ? Astuce : l’objectif est d’additionner tous les articles à l’aide de la fonction SOMME.",null,"Bananes",60]
["BON À SAVOIR\nCliquez sur Options pour définir les règles permettant d’afficher ou d’ignorer les erreurs dans Excel.\n",null,"Citrons",40]
["Précédent"]
["Suivant",null,"Pomme",{"$f":"VLOOKUP(C9,C3:D7,2,FALSE)","v":{"$error":"#N/A"}}]
["Plus d’informations sur le Web"]
["Détecter les erreurs dans les formules"]
["Comment éviter les formules incorrectes"]
["Évaluer une formule imbriquée étape par étape"]
["Formation en ligne gratuite sur Excel"]
{"$rows_empty":15}
[null,null,"Fruits","Quantité"]
[null,null,"Pommes",50]
[null,null,"Oranges",20]
[null,null,"Bananes",60]
[null,null,"Citrons",40]
[]
[null,null,"Total",{"$f":"sume(D31:D34)","v":{"$error":"#NAME?"}}]

{"sheet":"En savoir plus","index":12,"n_rows":6,"n_cols":1,"rows_kept":6}
["Vous avez d’autres questions sur Excel ?"]
["Appuyez sur ALT+Q et tapez ce que vous voulez savoir."]
["Ne vous arrêtez pas là. Excel vous offre d’autres opportunités d’apprentissage :"]
["LinkedIn Learning : Cours vidéo pour tous les niveaux, de débutant à avancé. Apprenez à votre rythme.\n"]
["Communauté : Posez des questions et communiquez avec d’autres adeptes d’Excel.\n"]
["Quelles sont les autres nouveautés ?\nLes abonnés à Office 365 reçoivent des mises à jour et de nouvelles fonctionnalités en continu.\n\n"]